[Event "*** Titled Tuesday Blitz"]
[Site "Chess.com"]
[Date "2020.05.19"]
[Round "4"]
[White "IljaJoke"]
[Black "Tapuah"]
[Result "0-1"]
[WhiteElo "2533"]
[BlackElo "2790"]
[TimeControl "180+1"]
[EndTime "12:39:09 PDT"]
[Termination "Tapuah won by resignation"]

1. d4 {[%clk 0:03:00.9]} 1... Nf6 {[%clk 0:02:59.1]} 2. c4 {[%clk 0:03:01]} 2...
g6 {[%clk 0:02:59]} 3. Nc3 {[%clk 0:03:01.2]} 3... Bg7 {[%clk 0:02:59.5]} 4. e4
{[%clk 0:03:01.6]} 4... d6 {[%clk 0:03:00]} 5. Be2 {[%clk 0:03:02.1]} 5... O-O
{[%clk 0:02:59.5]} 6. Be3 {[%clk 0:03:02.7]} 6... c5 {[%clk 0:02:58.9]} 7. d5
{[%clk 0:02:59.3]} 7... e6 {[%clk 0:02:57.3]} 8. Nf3 {[%clk 0:02:49.1]} 8... Re8
{[%clk 0:02:57]} 9. Nd2 {[%clk 0:02:38]} 9... Na6 {[%clk 0:02:56.7]} 10. O-O
{[%clk 0:02:35.1]} 10... Nc7 {[%clk 0:02:55.5]} 11. a4 {[%clk 0:02:34.3]} 11...
b6 {[%clk 0:02:55.6]} 12. Bg5 {[%clk 0:02:23.4]} 12... h6 {[%clk 0:02:52]} 13.
Bh4 {[%clk 0:02:22.1]} 13... Rb8 {[%clk 0:02:46.1]} 14. Ra3 {[%clk 0:02:13]}
14... a6 {[%clk 0:02:44.9]} 15. f4 {[%clk 0:01:46]} 15... exd5 {[%clk
0:02:44.2]} 16. cxd5 {[%clk 0:01:43.6]} 16... b5 {[%clk 0:02:43.9]} 17. axb5
{[%clk 0:01:34.2]} 17... axb5 {[%clk 0:02:44]} 18. e5 {[%clk 0:00:39.5]} 18...
dxe5 {[%clk 0:02:42.8]} 19. Nce4 {[%clk 0:00:39.4]} 19... exf4 {[%clk
0:02:34.6]} 20. d6 {[%clk 0:00:33]} 20... Ncd5 {[%clk 0:02:24]} 21. Bf3 {[%clk
0:00:18.2]} 21... g5 {[%clk 0:02:18.8]} 22. Bf2 {[%clk 0:00:09.1]} 22... g4
{[%clk 0:02:00.4]} 23. Nxf6+ {[%clk 0:00:08.2]} 23... Nxf6 {[%clk 0:02:00.4]}
24. Bc6 {[%clk 0:00:08.4]} 24... Bd7 {[%clk 0:01:57.5]} 25. Bxd7 {[%clk
0:00:07.9]} 25... Qxd7 {[%clk 0:01:54.1]} 26. Bxc5 {[%clk 0:00:08.1]} 26... Nd5
{[%clk 0:01:43.4]} 27. Ra7 {[%clk 0:00:07.3]} 27... Qe6 {[%clk 0:01:37.7]} 28.
b4 {[%clk 0:00:06]} 28... Rbd8 {[%clk 0:01:31.4]} 29. Nb3 {[%clk 0:00:06.1]}
29... Ne3 {[%clk 0:01:30.7]} 30. Qd3 {[%clk 0:00:02.5]} 30... Nxf1 {[%clk
0:01:29.3]} 0-1

[Event "*** Titled Tuesday Blitz"]
[Site "Chess.com"]
[Date "2020.05.19"]
[Round "4"]
[White "Papa12341234"]
[Black "JoachimMouhamad"]
[Result "1-0"]
[WhiteElo "2545"]
[BlackElo "2312"]
[TimeControl "180+1"]
[EndTime "12:39:16 PDT"]
[Termination "Papa12341234 won by resignation"]

1. e4 {[%clk 0:03:00.9]} 1... c5 {[%clk 0:02:58.4]} 2. Nc3 {[%clk 0:03:00.8]}
2... Nc6 {[%clk 0:02:58]} 3. Nf3 {[%clk 0:03:01.3]} 3... g6 {[%clk 0:02:57.3]}
4. Bb5 {[%clk 0:03:00.9]} 4... Nd4 {[%clk 0:02:52.4]} 5. Ba4 {[%clk 0:02:56.4]}
5... Bg7 {[%clk 0:02:46.9]} 6. O-O {[%clk 0:02:56.5]} 6... e6 {[%clk 0:02:45.8]}
7. Nxd4 {[%clk 0:02:51.9]} 7... cxd4 {[%clk 0:02:45.5]} 8. Nb5 {[%clk
0:02:52.4]} 8... Qb6 {[%clk 0:02:41.1]} 9. c3 {[%clk 0:02:49.4]} 9... Ne7 {[%clk
0:02:09.2]} 10. Nxd4 {[%clk 0:02:43.4]} 10... Bxd4 {[%clk 0:02:04.3]} 11. cxd4
{[%clk 0:02:44.3]} 11... Qxd4 {[%clk 0:02:05.2]} 12. Bc2 {[%clk 0:02:42.7]}
12... Nc6 {[%clk 0:02:02.1]} 13. d3 {[%clk 0:02:40.3]} 13... O-O {[%clk
0:01:59.7]} 14. Rb1 {[%clk 0:02:30.2]} 14... Qg7 {[%clk 0:01:34.2]} 15. Be3
{[%clk 0:02:29.6]} 15... Nd4 {[%clk 0:01:33.7]} 16. Qd2 {[%clk 0:02:25.8]} 16...
Re8 {[%clk 0:01:22.1]} 17. Bd1 {[%clk 0:02:19.2]} 17... d6 {[%clk 0:01:17.9]}
18. Rc1 {[%clk 0:02:17.4]} 18... Bd7 {[%clk 0:01:15.9]} 19. f4 {[%clk
0:02:16.2]} 19... f5 {[%clk 0:01:10.3]} 20. Qf2 {[%clk 0:02:08.9]} 20... Nc6
{[%clk 0:01:08]} 21. Bf3 {[%clk 0:02:08.1]} 21... Rac8 {[%clk 0:01:02.8]} 22. a3
{[%clk 0:01:58.7]} 22... b6 {[%clk 0:00:50.6]} 23. b4 {[%clk 0:01:58.1]} 23...
Ne7 {[%clk 0:00:47.7]} 24. Bd4 {[%clk 0:01:56.3]} 24... e5 {[%clk 0:00:47.4]}
25. Bb2 {[%clk 0:01:55.2]} 25... Nc6 {[%clk 0:00:36.4]} 26. exf5 {[%clk
0:01:48.3]} 26... gxf5 {[%clk 0:00:35]} 27. Bd5+ {[%clk 0:01:46.3]} 27... Kh8
{[%clk 0:00:31.4]} 28. fxe5 {[%clk 0:01:45]} 28... Nxe5 {[%clk 0:00:29.4]} 29.
Rce1 {[%clk 0:01:22.1]} 29... Bc6 {[%clk 0:00:25.9]} 30. Bxc6 {[%clk 0:01:21.3]}
30... Rxc6 {[%clk 0:00:26.8]} 31. d4 {[%clk 0:01:18.5]} 31... Ng4 {[%clk
0:00:20.3]} 32. Rxe8+ {[%clk 0:01:17.7]} 1-0

[Event "*** Titled Tuesday Blitz"]
[Site "Chess.com"]
[Date "2020.05.19"]
[Round "4"]
[White "GM4life"]
[Black "Kotofeyca"]
[Result "1-0"]
[WhiteElo "2205"]
[BlackElo "2422"]
[TimeControl "180+1"]
[EndTime "12:39:16 PDT"]
[Termination "GM4life won by resignation"]

1. e4 {[%clk 0:03:00.9]} 1... c5 {[%clk 0:02:58.5]} 2. Nf3 {[%clk 0:03:01.3]}
2... d6 {[%clk 0:02:58.4]} 3. d4 {[%clk 0:03:01.7]} 3... cxd4 {[%clk 0:02:57.6]}
4. Nxd4 {[%clk 0:03:02.6]} 4... Nf6 {[%clk 0:02:57.1]} 5. Nc3 {[%clk 0:03:03.1]}
5... a6 {[%clk 0:02:57]} 6. Be3 {[%clk 0:03:02.9]} 6... Ng4 {[%clk 0:02:56.4]}
7. Bg5 {[%clk 0:03:02.2]} 7... Nc6 {[%clk 0:02:55.9]} 8. Be2 {[%clk 0:02:41.8]}
8... Qb6 {[%clk 0:02:54.7]} 9. Bxg4 {[%clk 0:02:07.1]} 9... Qxd4 {[%clk
0:02:53.2]} 10. O-O {[%clk 0:01:54.8]} 10... Qxd1 {[%clk 0:02:45.6]} 11. Bxd1
{[%clk 0:01:52.4]} 11... e6 {[%clk 0:02:44.2]} 12. Be2 {[%clk 0:01:43.3]} 12...
Be7 {[%clk 0:02:42.9]} 13. Bf4 {[%clk 0:01:36.4]} 13... b5 {[%clk 0:02:38.6]}
14. Rad1 {[%clk 0:01:32]} 14... Ne5 {[%clk 0:02:37]} 15. Bg3 {[%clk 0:01:10.5]}
15... Bb7 {[%clk 0:02:35.4]} 16. f4 {[%clk 0:01:08]} 16... Nc4 {[%clk
0:02:33.8]} 17. Bxc4 {[%clk 0:01:07]} 17... bxc4 {[%clk 0:02:32.6]} 18. f5
{[%clk 0:01:05.1]} 18... e5 {[%clk 0:02:11.1]} 19. Rd2 {[%clk 0:00:54.2]} 19...
Rb8 {[%clk 0:02:08.5]} 20. Rfd1 {[%clk 0:00:49.9]} 20... Bc6 {[%clk 0:02:05.2]}
21. b3 {[%clk 0:00:48.9]} 21... cxb3 {[%clk 0:02:00.2]} 22. axb3 {[%clk
0:00:46.7]} 22... Rb4 {[%clk 0:01:57.6]} 23. Re2 {[%clk 0:00:38]} 23... O-O
{[%clk 0:01:54.1]} 24. Nd5 {[%clk 0:00:31.5]} 24... Bxd5 {[%clk 0:01:52.5]} 25.
Rxd5 {[%clk 0:00:32.4]} 25... Rc8 {[%clk 0:01:49.2]} 26. Be1 {[%clk 0:00:30.8]}
26... Rc6 {[%clk 0:01:37.2]} 27. Bxb4 {[%clk 0:00:29.9]} 27... Kf8 {[%clk
0:01:34.1]} 28. Red2 {[%clk 0:00:29.2]} 28... Ke8 {[%clk 0:01:32.3]} 29. Bxd6
{[%clk 0:00:29]} 29... g6 {[%clk 0:01:26.8]} 30. Bxe7 {[%clk 0:00:28.5]} 30...
Kxe7 {[%clk 0:01:26.7]} 31. Rd7+ {[%clk 0:00:29]} 31... Kf6 {[%clk 0:01:25.3]}
32. R2d6+ {[%clk 0:00:28.7]} 1-0

[Event "*** Titled Tuesday Blitz"]
[Site "Chess.com"]
[Date "2020.05.19"]
[Round "4"]
[White "RobPeresian"]
[Black "sommerpower"]
[Result "0-1"]
[WhiteElo "2282"]
[BlackElo "2460"]
[TimeControl "180+1"]
[EndTime "12:39:20 PDT"]
[Termination "sommerpower won by resignation"]

1. Nf3 {[%clk 0:03:00.9]} 1... d5 {[%clk 0:02:59]} 2. d4 {[%clk 0:02:57.5]} 2...
e6 {[%clk 0:02:56.3]} 3. c4 {[%clk 0:02:57.1]} 3... dxc4 {[%clk 0:02:55.3]} 4.
Nc3 {[%clk 0:02:56.5]} 4... c6 {[%clk 0:02:53.6]} 5. g3 {[%clk 0:02:49.5]} 5...
b5 {[%clk 0:02:53]} 6. Bg2 {[%clk 0:02:49.8]} 6... Nd7 {[%clk 0:02:51.1]} 7. O-O
{[%clk 0:02:48.1]} 7... Bb7 {[%clk 0:02:50.6]} 8. a4 {[%clk 0:02:40.6]} 8... a6
{[%clk 0:02:47.9]} 9. e4 {[%clk 0:02:40.7]} 9... Ngf6 {[%clk 0:02:46.3]} 10. e5
{[%clk 0:02:34.5]} 10... Nd5 {[%clk 0:02:45]} 11. Ne4 {[%clk 0:02:34.7]} 11...
h6 {[%clk 0:02:42.9]} 12. h4 {[%clk 0:02:27]} 12... Qb6 {[%clk 0:02:40.2]} 13.
Be3 {[%clk 0:01:59.9]} 13... c5 {[%clk 0:02:37.6]} 14. dxc5 {[%clk 0:01:52.3]}
14... Nxe3 {[%clk 0:02:33.6]} 15. fxe3 {[%clk 0:01:38.1]} 15... Nxc5 {[%clk
0:02:30.4]} 16. a5 {[%clk 0:01:24.7]} 16... Qd8 {[%clk 0:02:14.9]} 17. Nd6+
{[%clk 0:01:21.8]} 17... Bxd6 {[%clk 0:02:13.7]} 18. exd6 {[%clk 0:01:21.1]}
18... O-O {[%clk 0:02:11.7]} 19. Qd4 {[%clk 0:01:15.1]} 19... Nb3 {[%clk
0:02:08.6]} 20. Qg4 {[%clk 0:01:02.2]} 20... Nxa1 {[%clk 0:02:06.6]} 21. Rxa1
{[%clk 0:00:55.9]} 21... Qxd6 {[%clk 0:02:05.1]} 22. Nd4 {[%clk 0:00:34.1]}
22... Bxg2 {[%clk 0:02:03.2]} 23. Kxg2 {[%clk 0:00:35]} 23... Rad8 {[%clk
0:01:56.8]} 24. Rf1 {[%clk 0:00:34.7]} 24... b4 {[%clk 0:01:45.2]} 25. Kh2
{[%clk 0:00:30.2]} 25... c3 {[%clk 0:01:44.1]} 26. bxc3 {[%clk 0:00:29.5]} 26...
bxc3 {[%clk 0:01:45]} 27. Rf6 {[%clk 0:00:29.9]} 27... Kh8 {[%clk 0:01:41.7]}
28. Qh5 {[%clk 0:00:26.6]} 28... gxf6 {[%clk 0:01:30]} 29. Qxh6+ {[%clk
0:00:22.5]} 29... Kg8 {[%clk 0:01:29.7]} 30. Qxf6 {[%clk 0:00:19.8]} 30... e5
{[%clk 0:01:26.3]} 31. Qg5+ {[%clk 0:00:16.6]} 31... Qg6 {[%clk 0:01:25.5]} 32.
Qxe5 {[%clk 0:00:17.5]} 32... Rfe8 {[%clk 0:01:24]} 33. Qf4 {[%clk 0:00:10.3]}
33... Rxd4 {[%clk 0:01:20.6]} 0-1

[Event "*** Titled Tuesday Blitz"]
[Site "Chess.com"]
[Date "2020.05.19"]
[Round "4"]
[White "EfM13"]
[Black "CroissantNeuf"]
[Result "1/2-1/2"]
[WhiteElo "2243"]
[BlackElo "2353"]
[TimeControl "180+1"]
[EndTime "12:39:21 PDT"]
[Termination "Game drawn by repetition"]

1. e4 {[%clk 0:03:00.9]} 1... c6 {[%clk 0:02:59.8]} 2. d4 {[%clk 0:02:48.1]}
2... d5 {[%clk 0:03:00.7]} 3. Nd2 {[%clk 0:02:47.5]} 3... dxe4 {[%clk
0:03:00.4]} 4. Nxe4 {[%clk 0:02:47.8]} 4... Nf6 {[%clk 0:03:01.3]} 5. Nxf6+
{[%clk 0:02:47.2]} 5... exf6 {[%clk 0:03:02.2]} 6. Nf3 {[%clk 0:02:47.5]} 6...
Bd6 {[%clk 0:03:02.6]} 7. Bd3 {[%clk 0:02:47.5]} 7... O-O {[%clk 0:03:03.5]} 8.
O-O {[%clk 0:02:47.5]} 8... Re8 {[%clk 0:03:04.2]} 9. h3 {[%clk 0:02:47.7]} 9...
Nd7 {[%clk 0:03:02.1]} 10. c3 {[%clk 0:02:47.8]} 10... Nf8 {[%clk 0:03:01.6]}
11. Nh4 {[%clk 0:02:45.4]} 11... g6 {[%clk 0:02:58]} 12. Bh6 {[%clk 0:02:44.2]}
12... f5 {[%clk 0:02:57.1]} 13. Nf3 {[%clk 0:02:43.3]} 13... Ne6 {[%clk
0:02:54.4]} 14. Qd2 {[%clk 0:02:42.5]} 14... f4 {[%clk 0:02:44.8]} 15. Rfe1
{[%clk 0:02:40.3]} 15... Bd7 {[%clk 0:02:43.4]} 16. Ne5 {[%clk 0:02:38.6]} 16...
Bxe5 {[%clk 0:02:24.9]} 17. Rxe5 {[%clk 0:02:37.7]} 17... Qh4 {[%clk 0:02:22.5]}
18. Rxe6 {[%clk 0:02:37.8]} 18... Bxe6 {[%clk 0:02:08.3]} 19. Bxf4 {[%clk
0:02:37.7]} 19... Qd8 {[%clk 0:01:50.9]} 20. b3 {[%clk 0:02:30.8]} 20... Bd5
{[%clk 0:01:30.3]} 21. Bg5 {[%clk 0:02:17.7]} 21... f6 {[%clk 0:01:29.5]} 22.
Bh4 {[%clk 0:02:17.2]} 22... Kg7 {[%clk 0:01:16.8]} 23. Rd1 {[%clk 0:02:05.6]}
23... Qd6 {[%clk 0:00:44.6]} 24. Bg3 {[%clk 0:02:03.9]} 24... Qd7 {[%clk
0:00:37.5]} 25. Qf4 {[%clk 0:02:00.6]} 25... Re7 {[%clk 0:00:26.3]} 26. h4
{[%clk 0:01:59.4]} 26... Rae8 {[%clk 0:00:22.6]} 27. c4 {[%clk 0:01:55.4]} 27...
Re1+ {[%clk 0:00:20.4]} 28. Rxe1 {[%clk 0:01:54.6]} 28... Rxe1+ {[%clk
0:00:21.3]} 29. Kh2 {[%clk 0:01:54.7]} 29... Be6 {[%clk 0:00:20.5]} 30. f3
{[%clk 0:01:45]} 30... Rd1 {[%clk 0:00:19.9]} 31. Qe3 {[%clk 0:01:42.7]} 31...
Bf5 {[%clk 0:00:12.9]} 32. Bxf5 {[%clk 0:01:40.7]} 32... gxf5 {[%clk 0:00:11]}
33. Bf2 {[%clk 0:01:29.9]} 33... Qd6+ {[%clk 0:00:10.9]} 34. Bg3 {[%clk
0:01:28.6]} 34... Qd7 {[%clk 0:00:06.3]} 35. Bf2 {[%clk 0:01:28.6]} 35... Qd6+
{[%clk 0:00:03.4]} 36. Bg3 {[%clk 0:01:28.2]} 36... Qd7 {[%clk 0:00:03.7]}
1/2-1/2

[Event "*** Titled Tuesday Blitz"]
[Site "Chess.com"]
[Date "2020.05.19"]
[Round "4"]
[White "cfjohansson"]
[Black "chesslh19"]
[Result "1-0"]
[WhiteElo "2421"]
[BlackElo "2179"]
[TimeControl "180+1"]
[EndTime "12:39:21 PDT"]
[Termination "cfjohansson won by resignation"]

1. d4 {[%clk 0:03:00.9]} 1... Nf6 {[%clk 0:02:54.4]} 2. c4 {[%clk 0:03:01.3]}
2... e6 {[%clk 0:02:52.2]} 3. Nc3 {[%clk 0:03:01.2]} 3... d5 {[%clk 0:02:51.8]}
4. Bg5 {[%clk 0:03:00]} 4... Be7 {[%clk 0:02:51.6]} 5. e3 {[%clk 0:02:58.9]}
5... h6 {[%clk 0:02:49.2]} 6. Bh4 {[%clk 0:02:58]} 6... O-O {[%clk 0:02:47.8]}
7. Nf3 {[%clk 0:02:55.7]} 7... Ne4 {[%clk 0:02:48]} 8. Bxe7 {[%clk 0:02:53.7]}
8... Qxe7 {[%clk 0:02:48]} 9. Rc1 {[%clk 0:02:53.4]} 9... c6 {[%clk 0:02:32.5]}
10. h4 {[%clk 0:02:52.6]} 10... Nd7 {[%clk 0:02:20.2]} 11. g4 {[%clk 0:02:46.4]}
11... e5 {[%clk 0:02:03.6]} 12. cxd5 {[%clk 0:02:41.6]} 12... Nxc3 {[%clk
0:02:02.8]} 13. Rxc3 {[%clk 0:02:42.5]} 13... cxd5 {[%clk 0:02:02.3]} 14. g5
{[%clk 0:02:39]} 14... Re8 {[%clk 0:01:08.4]} 15. gxh6 {[%clk 0:02:35.3]} 15...
g6 {[%clk 0:00:51.1]} 16. Ng5 {[%clk 0:02:18.3]} 16... exd4 {[%clk 0:00:48]} 17.
h7+ {[%clk 0:02:15.1]} 17... Kg7 {[%clk 0:00:41.2]} 18. Qxd4+ {[%clk 0:02:15.4]}
18... Qe5 {[%clk 0:00:38.5]} 19. Qxe5+ {[%clk 0:01:58]} 19... Nxe5 {[%clk
0:00:36.1]} 20. Rc7 {[%clk 0:01:47.5]} 20... Be6 {[%clk 0:00:28.9]} 21. f4
{[%clk 0:01:37.5]} 21... Ng4 {[%clk 0:00:21.8]} 22. Bb5 {[%clk 0:01:25.2]} 22...
Rac8 {[%clk 0:00:14.1]} 23. Nxe6+ {[%clk 0:01:24.8]} 23... Kxh7 {[%clk
0:00:05.3]} 24. Bxe8 {[%clk 0:01:20.6]} 24... Rxe8 {[%clk 0:00:03.8]} 25. Rxf7+
{[%clk 0:01:19]} 25... Kg8 {[%clk 0:00:03.6]} 26. Rf8+ {[%clk 0:01:14.3]} 26...
Rxf8 {[%clk 0:00:03.5]} 27. Nxf8 {[%clk 0:01:15.2]} 27... Kxf8 {[%clk
0:00:03.9]} 28. Ke2 {[%clk 0:01:14.8]} 28... Nf6 {[%clk 0:00:03.9]} 29. Kd3
{[%clk 0:01:11.2]} 1-0

[Event "*** Titled Tuesday Blitz"]
[Site "Chess.com"]
[Date "2020.05.19"]
[Round "4"]
[White "FairChess_on_YouTube"]
[Black "zaur-mammadov"]
[Result "1-0"]
[WhiteElo "3017"]
[BlackElo "2546"]
[TimeControl "180+1"]
[EndTime "12:39:22 PDT"]
[Termination "FairChess_on_YouTube won by resignation"]

1. e4 {[%clk 0:03:00.9]} 1... e6 {[%clk 0:02:58.1]} 2. d4 {[%clk 0:03:00.5]}
2... d5 {[%clk 0:02:58.6]} 3. Nc3 {[%clk 0:03:01]} 3... Nf6 {[%clk 0:02:58.5]}
4. e5 {[%clk 0:03:00.8]} 4... Nfd7 {[%clk 0:02:58.7]} 5. f4 {[%clk 0:03:01.4]}
5... c5 {[%clk 0:02:59.2]} 6. Nf3 {[%clk 0:03:01.9]} 6... Nc6 {[%clk 0:02:59.6]}
7. Be3 {[%clk 0:03:02]} 7... Qb6 {[%clk 0:03:00.2]} 8. Na4 {[%clk 0:03:01.2]}
8... Qa5+ {[%clk 0:03:00.2]} 9. c3 {[%clk 0:03:01.2]} 9... b6 {[%clk 0:03:00.6]}
10. Bd2 {[%clk 0:02:49.7]} 10... c4 {[%clk 0:03:00.1]} 11. b4 {[%clk 0:02:49]}
11... Nxb4 {[%clk 0:03:00.4]} 12. cxb4 {[%clk 0:02:47.1]} 12... Bxb4 {[%clk
0:03:01.3]} 13. Qc2 {[%clk 0:02:21.3]} 13... Bxd2+ {[%clk 0:03:00.2]} 14. Nxd2
{[%clk 0:02:21.3]} 14... b5 {[%clk 0:03:00.9]} 15. Nc5 {[%clk 0:02:17.8]} 15...
Nxc5 {[%clk 0:02:56.4]} 16. dxc5 {[%clk 0:02:18.7]} 16... b4 {[%clk 0:02:56.9]}
17. Bxc4 {[%clk 0:02:13.3]} 17... dxc4 {[%clk 0:02:57]} 18. Nxc4 {[%clk
0:02:13.2]} 18... b3+ {[%clk 0:02:57.6]} 19. Qd2 {[%clk 0:01:56.9]} 19... Qxd2+
{[%clk 0:02:56.5]} 20. Kxd2 {[%clk 0:01:56.4]} 20... bxa2 {[%clk 0:02:54.9]} 21.
Nd6+ {[%clk 0:01:51.7]} 21... Ke7 {[%clk 0:02:54.9]} 22. Rxa2 {[%clk 0:01:51.6]}
22... Bd7 {[%clk 0:02:41]} 23. Rha1 {[%clk 0:01:46.6]} 23... Rac8 {[%clk
0:01:11.9]} 24. Nxc8+ {[%clk 0:01:37.7]} 24... Rxc8 {[%clk 0:01:12.8]} 25. Rxa7
{[%clk 0:01:26.1]} 25... Rxc5 {[%clk 0:01:11.5]} 26. Rd1 {[%clk 0:01:25.7]}
26... Rd5+ {[%clk 0:00:33.7]} 27. Ke1 {[%clk 0:01:24.8]} 27... f6 {[%clk
0:00:30.5]} 28. exf6+ {[%clk 0:01:20.7]} 28... gxf6 {[%clk 0:00:29.2]} 29. Rxd5
{[%clk 0:01:21.1]} 29... exd5 {[%clk 0:00:29]} 30. Kd2 {[%clk 0:01:21.7]} 30...
Kd6 {[%clk 0:00:20.3]} 31. Ke3 {[%clk 0:01:21.7]} 31... Bf5 {[%clk 0:00:17.2]}
32. Kd4 {[%clk 0:01:21.7]} 32... Be4 {[%clk 0:00:17.4]} 33. g4 {[%clk
0:01:19.2]} 33... Ke6 {[%clk 0:00:10]} 34. f5+ {[%clk 0:01:18.8]} 1-0

[Event "*** Titled Tuesday Blitz"]
[Site "Chess.com"]
[Date "2020.05.19"]
[Round "4"]
[White "GlennTipton"]
[Black "Mikhail_Biryukov"]
[Result "0-1"]
[WhiteElo "2475"]
[BlackElo "2655"]
[TimeControl "180+1"]
[EndTime "12:39:22 PDT"]
[Termination "Mikhail_Biryukov won by resignation"]

1. e4 {[%clk 0:03:00.9]} 1... c5 {[%clk 0:02:58.4]} 2. Nc3 {[%clk 0:02:59.3]}
2... e6 {[%clk 0:02:59.3]} 3. f4 {[%clk 0:02:59.3]} 3... Nc6 {[%clk 0:02:58.2]}
4. Nf3 {[%clk 0:02:59.7]} 4... a6 {[%clk 0:02:54.6]} 5. g3 {[%clk 0:02:54]} 5...
g6 {[%clk 0:02:54]} 6. d4 {[%clk 0:02:49.2]} 6... cxd4 {[%clk 0:02:53.6]} 7.
Nxd4 {[%clk 0:02:50.1]} 7... Nge7 {[%clk 0:02:50.8]} 8. Be3 {[%clk 0:02:40.5]}
8... Bg7 {[%clk 0:02:49.6]} 9. Bg2 {[%clk 0:02:37.6]} 9... O-O {[%clk
0:02:47.8]} 10. O-O {[%clk 0:02:33]} 10... d5 {[%clk 0:02:45.3]} 11. exd5 {[%clk
0:02:23.6]} 11... exd5 {[%clk 0:02:46.2]} 12. Nxc6 {[%clk 0:02:22.6]} 12... bxc6
{[%clk 0:02:44.8]} 13. Bd4 {[%clk 0:02:22.4]} 13... Rb8 {[%clk 0:02:38.5]} 14.
Bxg7 {[%clk 0:02:01.7]} 14... Kxg7 {[%clk 0:02:38.5]} 15. b3 {[%clk 0:01:57.2]}
15... Qb6+ {[%clk 0:02:35.2]} 16. Kh1 {[%clk 0:01:55.9]} 16... Nf5 {[%clk
0:02:35.1]} 17. Na4 {[%clk 0:01:49.1]} 17... Qa7 {[%clk 0:02:34.6]} 18. Qd2
{[%clk 0:01:44]} 18... Ne3 {[%clk 0:02:22.4]} 19. Qf2 {[%clk 0:01:00.5]} 19...
d4 {[%clk 0:02:19.5]} 20. Rfe1 {[%clk 0:00:53.4]} 20... Bf5 {[%clk 0:02:17.7]}
21. c4 {[%clk 0:00:43.8]} 21... Nc2 {[%clk 0:01:44.8]} 22. g4 {[%clk 0:00:34.3]}
22... Nxe1 {[%clk 0:01:44.5]} 23. gxf5 {[%clk 0:00:32.2]} 23... Nxg2 {[%clk
0:01:44]} 24. Qxg2 {[%clk 0:00:24.4]} 24... Qe7 {[%clk 0:01:42.7]} 25. Qf2
{[%clk 0:00:20.3]} 25... Rbd8 {[%clk 0:01:39.8]} 26. Rd1 {[%clk 0:00:17.2]}
26... Qe4+ {[%clk 0:01:38.9]} 27. Kg1 {[%clk 0:00:15.6]} 27... d3 {[%clk
0:01:34.6]} 28. f6+ {[%clk 0:00:12.4]} 28... Kh8 {[%clk 0:01:29.8]} 29. Nc5
{[%clk 0:00:13.3]} 29... Qf5 {[%clk 0:01:29.1]} 30. Qe3 {[%clk 0:00:09.3]} 30...
Qg4+ {[%clk 0:01:27.8]} 0-1

[Event "*** Titled Tuesday Blitz"]
[Site "Chess.com"]
[Date "2020.05.19"]
[Round "4"]
[White "vovachesss"]
[Black "noblerone"]
[Result "1-0"]
[WhiteElo "2621"]
[BlackElo "2457"]
[TimeControl "180+1"]
[EndTime "12:39:22 PDT"]
[Termination "vovachesss won by resignation"]

1. e4 {[%clk 0:03:00.9]} 1... c5 {[%clk 0:02:59.6]} 2. c3 {[%clk 0:02:59]} 2...
d5 {[%clk 0:02:59.2]} 3. exd5 {[%clk 0:02:58.8]} 3... Qxd5 {[%clk 0:03:00.1]} 4.
d4 {[%clk 0:02:59.4]} 4... cxd4 {[%clk 0:02:59.8]} 5. cxd4 {[%clk 0:02:59.5]}
5... Nc6 {[%clk 0:03:00.4]} 6. Nf3 {[%clk 0:02:59.9]} 6... e5 {[%clk 0:02:59.8]}
7. Nc3 {[%clk 0:02:55.3]} 7... Bb4 {[%clk 0:02:59.5]} 8. Be3 {[%clk 0:02:48.9]}
8... exd4 {[%clk 0:02:32.8]} 9. Nxd4 {[%clk 0:02:48.1]} 9... Nf6 {[%clk
0:02:24.6]} 10. Nxc6 {[%clk 0:02:36]} 10... Qxc6 {[%clk 0:02:07.5]} 11. Qb3
{[%clk 0:02:31.7]} 11... Bxc3+ {[%clk 0:02:04.1]} 12. Qxc3 {[%clk 0:02:32.6]}
12... Qxc3+ {[%clk 0:02:01.5]} 13. bxc3 {[%clk 0:02:33.5]} 13... Bd7 {[%clk
0:02:02]} 14. Bd4 {[%clk 0:02:31.6]} 14... Bc6 {[%clk 0:02:01.1]} 15. f3 {[%clk
0:02:31.7]} 15... O-O {[%clk 0:01:59.3]} 16. Kf2 {[%clk 0:02:26.7]} 16... Nd5
{[%clk 0:01:55.4]} 17. Bc4 {[%clk 0:02:24.1]} 17... Nf4 {[%clk 0:01:51.6]} 18.
Rhe1 {[%clk 0:02:19.9]} 18... a6 {[%clk 0:01:45.3]} 19. Rad1 {[%clk 0:02:13.2]}
19... Rac8 {[%clk 0:01:40.4]} 20. Bb3 {[%clk 0:02:06.1]} 20... Rfe8 {[%clk
0:01:30.3]} 21. Be5 {[%clk 0:01:45.7]} 21... Ne6 {[%clk 0:01:16.8]} 22. Rd6
{[%clk 0:01:40.5]} 22... Nc5 {[%clk 0:01:12.6]} 23. Bc2 {[%clk 0:01:33.4]} 23...
Rcd8 {[%clk 0:00:50.7]} 24. Red1 {[%clk 0:01:25.1]} 24... Rxd6 {[%clk
0:00:48.7]} 25. Bxd6 {[%clk 0:01:26]} 25... Ne6 {[%clk 0:00:47]} 26. Bb3 {[%clk
0:01:18.3]} 26... h6 {[%clk 0:00:44]} 27. h4 {[%clk 0:01:15.9]} 27... Rd8 {[%clk
0:00:42]} 28. g4 {[%clk 0:01:14.9]} 28... Rc8 {[%clk 0:00:33.3]} 29. f4 {[%clk
0:01:11.5]} 29... Bb5 {[%clk 0:00:32.8]} 30. f5 {[%clk 0:01:08]} 30... Nc5
{[%clk 0:00:29.8]} 31. Bxc5 {[%clk 0:01:06.7]} 31... Rxc5 {[%clk 0:00:29.8]} 32.
Rd8+ {[%clk 0:01:07.5]} 32... Kh7 {[%clk 0:00:30.2]} 33. Bxf7 {[%clk 0:01:08.2]}
1-0